[Event "Early-Titled-Tuesday-Blitz-December-26-2023"]
[Site "Chess.com"]
[Date "2023.12.26"]
[Round "9"]
[White "NowInChess"]
[Black "hsmile"]
[Result "1-0"]
[WhiteElo "2292"]
[BlackElo "2089"]
[TimeControl "180+1"]
[EndTime "9:45:42 PST"]
[Termination "NowInChess won on time"]

1. e4 {[%clk 0:03:00.9]} 1... Nf6 {[%clk 0:03:00.9]} 2. e5 {[%clk 0:03:00.7]}
2... Nd5 {[%clk 0:03:00.7]} 3. c4 {[%clk 0:03:00.8]} 3... Nb6 {[%clk 0:03:00.2]}
4. d4 {[%clk 0:03:01.4]} 4... d6 {[%clk 0:02:59.8]} 5. exd6 {[%clk 0:03:01.9]}
5... exd6 {[%clk 0:02:59.1]} 6. Nc3 {[%clk 0:03:02]} 6... Nc6 {[%clk 0:02:59]}
7. d5 {[%clk 0:02:47.8]} 7... Ne5 {[%clk 0:02:56.6]} 8. f4 {[%clk 0:02:43.1]}
8... Ned7 {[%clk 0:02:56.2]} 9. Nf3 {[%clk 0:02:40.4]} 9... Be7 {[%clk
0:02:54.5]} 10. b3 {[%clk 0:02:36]} 10... O-O {[%clk 0:02:51.1]} 11. Bb2 {[%clk
0:02:22.2]} 11... Re8 {[%clk 0:02:47.3]} 12. Be2 {[%clk 0:02:18.2]} 12... Bf6
{[%clk 0:02:39.3]} 13. O-O {[%clk 0:02:16.4]} 13... Nc5 {[%clk 0:02:32.7]} 14.
Nd4 {[%clk 0:01:53.7]} 14... Bd7 {[%clk 0:02:17.2]} 15. Qd2 {[%clk 0:01:46.8]}
15... a5 {[%clk 0:02:03.5]} 16. Rae1 {[%clk 0:01:38.2]} 16... a4 {[%clk
0:01:51.7]} 17. b4 {[%clk 0:01:37.8]} 17... Ne4 {[%clk 0:01:48.5]} 18. Nxe4
{[%clk 0:01:32.3]} 18... Rxe4 {[%clk 0:01:49.3]} 19. a3 {[%clk 0:00:58.1]} 19...
Qf8 {[%clk 0:01:18]} 20. Qd3 {[%clk 0:00:39.8]} 20... Rae8 {[%clk 0:01:13.3]}
21. Ba1 {[%clk 0:00:36.5]} 21... Re3 {[%clk 0:01:01]} 22. Ne6 {[%clk 0:00:24.2]}
22... fxe6 {[%clk 0:00:52.4]} 23. Qxe3 {[%clk 0:00:22.2]} 23... exd5 {[%clk
0:00:44.8]} 24. Qc1 {[%clk 0:00:17.7]} 24... Bxa1 {[%clk 0:00:37.4]} 25. Qxa1
{[%clk 0:00:16.5]} 25... dxc4 {[%clk 0:00:37.5]} 26. Qc3 {[%clk 0:00:14.9]}
26... d5 {[%clk 0:00:36.3]} 27. Bd1 {[%clk 0:00:13.7]} 27... c6 {[%clk
0:00:33.6]} 28. Bc2 {[%clk 0:00:12.9]} 28... Rxe1 {[%clk 0:00:27.7]} 29. Rxe1
{[%clk 0:00:13.8]} 29... Qxf4 {[%clk 0:00:24.3]} 30. Rf1 {[%clk 0:00:12.1]}
30... Qd6 {[%clk 0:00:18.3]} 31. Qf3 {[%clk 0:00:11]} 31... Be6 {[%clk
0:00:16.3]} 32. h3 {[%clk 0:00:07.5]} 32... d4 {[%clk 0:00:14]} 33. Qf2 {[%clk
0:00:06.6]} 33... h6 {[%clk 0:00:06.2]} 34. Be4 {[%clk 0:00:06.3]} 34... Nd5
{[%clk 0:00:04.9]} 35. Qxd4 {[%clk 0:00:05.1]} 35... c3 {[%clk 0:00:04.2]} 36.
Rd1 {[%clk 0:00:04.4]} 36... Qg3 {[%clk 0:00:01.9]} 37. Bc2 {[%clk 0:00:03.8]}
37... Bf7 {[%clk 0:00:01.3]} 38. Bxa4 {[%clk 0:00:03.6]} 1-0

[Event "Early-Titled-Tuesday-Blitz-December-26-2023"]
[Site "Chess.com"]
[Date "2023.12.26"]
[Round "9"]
[White "Kirill_Klukin"]
[Black "Suleyman_Chess06"]
[Result "1-0"]
[WhiteElo "2831"]
[BlackElo "2627"]
[TimeControl "180+1"]
[EndTime "9:45:46 PST"]
[Termination "Kirill_Klukin won by resignation"]

1. d4 {[%clk 0:03:00.9]} 1... d5 {[%clk 0:02:57.8]} 2. c4 {[%clk 0:03:00.9]}
2... c6 {[%clk 0:02:58.4]} 3. Nc3 {[%clk 0:03:01.1]} 3... Nf6 {[%clk 0:02:59.1]}
4. Nf3 {[%clk 0:03:00.9]} 4... Bf5 {[%clk 0:02:59.7]} 5. Qb3 {[%clk 0:03:00.7]}
5... Qb6 {[%clk 0:02:50.8]} 6. c5 {[%clk 0:03:00.9]} 6... Qxb3 {[%clk
0:02:49.1]} 7. axb3 {[%clk 0:03:01.2]} 7... Na6 {[%clk 0:02:49.8]} 8. Na2 {[%clk
0:02:49.1]} 8... e6 {[%clk 0:02:47.3]} 9. Bf4 {[%clk 0:02:43.1]} 9... Be7 {[%clk
0:02:42.9]} 10. e3 {[%clk 0:02:41.3]} 10... Nb8 {[%clk 0:02:43.2]} 11. h3 {[%clk
0:02:38.9]} 11... Nbd7 {[%clk 0:02:43.2]} 12. b4 {[%clk 0:02:35.5]} 12... a6
{[%clk 0:02:41.1]} 13. Nc3 {[%clk 0:02:35.7]} 13... Rc8 {[%clk 0:02:40.9]} 14.
Nh4 {[%clk 0:02:26.7]} 14... Bc2 {[%clk 0:02:38.8]} 15. Kd2 {[%clk 0:02:18.5]}
15... Be4 {[%clk 0:02:38]} 16. f3 {[%clk 0:02:07.1]} 16... Nh5 {[%clk
0:02:34.4]} 17. fxe4 {[%clk 0:01:55.1]} 17... Bxh4 {[%clk 0:02:33.2]} 18. Bh2
{[%clk 0:01:44.8]} 18... Ng3 {[%clk 0:02:31.2]} 19. Bxg3 {[%clk 0:01:15]} 19...
Bxg3 {[%clk 0:02:32.1]} 20. Bd3 {[%clk 0:01:15.7]} 20... O-O {[%clk 0:02:31.1]}
21. Rhf1 {[%clk 0:01:15.3]} 21... Nf6 {[%clk 0:02:26]} 22. Rf3 {[%clk
0:01:09.7]} 22... Bc7 {[%clk 0:02:23.7]} 23. g4 {[%clk 0:01:08.3]} 23... dxe4
{[%clk 0:02:22.8]} 24. Nxe4 {[%clk 0:01:07.3]} 24... Nd5 {[%clk 0:02:22.6]} 25.
Ra4 {[%clk 0:01:02]} 25... Rcd8 {[%clk 0:02:19]} 26. Nc3 {[%clk 0:01:00.4]}
26... Ne7 {[%clk 0:02:15.7]} 27. Kc2 {[%clk 0:00:50.2]} 27... Rd7 {[%clk
0:02:15.7]} 28. Ra1 {[%clk 0:00:47.8]} 28... Rfd8 {[%clk 0:02:15.9]} 29. Bc4
{[%clk 0:00:48.2]} 29... Nd5 {[%clk 0:02:08.8]} 30. Bxd5 {[%clk 0:00:42.5]}
30... exd5 {[%clk 0:02:09.7]} 31. Kd3 {[%clk 0:00:42.5]} 31... Re7 {[%clk
0:02:09.5]} 32. Re1 {[%clk 0:00:41.2]} 32... Rde8 {[%clk 0:02:09.2]} 33. e4
{[%clk 0:00:40.6]} 33... f6 {[%clk 0:02:03.8]} 34. Re2 {[%clk 0:00:35.4]} 34...
a5 {[%clk 0:01:52]} 35. exd5 {[%clk 0:00:26.7]} 35... Rxe2 {[%clk 0:01:42.5]}
36. Nxe2 {[%clk 0:00:26.7]} 36... axb4 {[%clk 0:01:43]} 37. d6 {[%clk
0:00:25.4]} 37... Ba5 {[%clk 0:01:43.4]} 38. Re3 {[%clk 0:00:19.8]} 38... Rxe3+
{[%clk 0:01:39.9]} 39. Kxe3 {[%clk 0:00:20.7]} 39... Kf7 {[%clk 0:01:40.3]} 40.
Ke4 {[%clk 0:00:21]} 40... Ke6 {[%clk 0:01:35.4]} 41. Nf4+ {[%clk 0:00:20.6]}
41... Kd7 {[%clk 0:01:33.9]} 42. b3 {[%clk 0:00:21.3]} 42... Bd8 {[%clk
0:01:33]} 43. Nd3 {[%clk 0:00:19.8]} 43... Ba5 {[%clk 0:01:32.1]} 44. Kf5 {[%clk
0:00:20.2]} 44... Bd8 {[%clk 0:01:29]} 45. Nxb4 {[%clk 0:00:19.2]} 45... g6+
{[%clk 0:01:29.7]} 46. Ke4 {[%clk 0:00:19.6]} 46... Ke6 {[%clk 0:01:30.6]} 47.
d5+ {[%clk 0:00:15.4]} 47... cxd5+ {[%clk 0:01:30]} 48. Nxd5 {[%clk 0:00:16.3]}
48... f5+ {[%clk 0:01:30.3]} 49. gxf5+ {[%clk 0:00:17.1]} 49... gxf5+ {[%clk
0:01:31.2]} 50. Kd4 {[%clk 0:00:17.8]} 50... Bg5 {[%clk 0:01:29.5]} 51. b4
{[%clk 0:00:16.1]} 51... f4 {[%clk 0:01:17.9]} 52. h4 {[%clk 0:00:11.5]} 52...
Bh6 {[%clk 0:01:09]} 53. Ke4 {[%clk 0:00:12]} 53... f3 {[%clk 0:01:09.6]} 54.
Nc7+ {[%clk 0:00:12.4]} 54... Kd7 {[%clk 0:01:10.3]} 55. Kxf3 {[%clk 0:00:12.9]}
55... Bd2 {[%clk 0:01:10.1]} 56. Nd5 {[%clk 0:00:13.4]} 56... h5 {[%clk
0:01:06.1]} 57. Ke4 {[%clk 0:00:11.3]} 57... Kc6 {[%clk 0:01:02.8]} 58. Kd4
{[%clk 0:00:10.5]} 58... Be1 {[%clk 0:01:02.8]} 59. Kc4 {[%clk 0:00:09.8]} 59...
Bxh4 {[%clk 0:01:03]} 60. b5+ {[%clk 0:00:10.4]} 60... Kd7 {[%clk 0:01:03.6]}
61. Nb6+ {[%clk 0:00:11.2]} 61... Kd8 {[%clk 0:01:02.3]} 62. c6 {[%clk
0:00:11.4]} 62... bxc6 {[%clk 0:00:55.9]} 63. bxc6 {[%clk 0:00:12.3]} 63... Ke8
{[%clk 0:00:56.4]} 64. c7 {[%clk 0:00:12.5]} 64... Kf7 {[%clk 0:00:57]} 65. c8=Q
{[%clk 0:00:13]} 65... Bf6 {[%clk 0:00:57.8]} 66. Qf5 {[%clk 0:00:13]} 66... h4
{[%clk 0:00:58.7]} 67. Nd5 {[%clk 0:00:13.4]} 67... h3 {[%clk 0:00:58.7]} 68.
Qxf6+ {[%clk 0:00:13.8]} 68... Kg8 {[%clk 0:00:59.3]} 69. d7 {[%clk 0:00:14.1]}
69... Kh7 {[%clk 0:01:00.2]} 1-0

[Event "Early-Titled-Tuesday-Blitz-December-26-2023"]
[Site "Chess.com"]
[Date "2023.12.26"]
[Round "9"]
[White "MrrRefrao"]
[Black "Witty_Alien"]
[Result "1-0"]
[WhiteElo "2550"]
[BlackElo "2446"]
[TimeControl "180+1"]
[EndTime "9:45:46 PST"]
[Termination "MrrRefrao won by checkmate"]

1. Nf3 {[%clk 0:02:58.8]} 1... Nf6 {[%clk 0:02:59.7]} 2. g3 {[%clk 0:02:59.3]}
2... g6 {[%clk 0:02:53.5]} 3. Bg2 {[%clk 0:02:59.7]} 3... Bg7 {[%clk 0:02:54.1]}
4. O-O {[%clk 0:03:00.4]} 4... O-O {[%clk 0:02:54.8]} 5. d3 {[%clk 0:03:01.1]}
5... d6 {[%clk 0:02:54]} 6. e4 {[%clk 0:03:01]} 6... c5 {[%clk 0:02:54.5]} 7.
Nc3 {[%clk 0:03:01.1]} 7... Nc6 {[%clk 0:02:54.6]} 8. h3 {[%clk 0:03:01.8]} 8...
a6 {[%clk 0:02:21.4]} 9. a4 {[%clk 0:03:00.3]} 9... Nb4 {[%clk 0:02:20.4]} 10.
Re1 {[%clk 0:02:53.3]} 10... e5 {[%clk 0:02:19.3]} 11. Bg5 {[%clk 0:02:47.9]}
11... h6 {[%clk 0:02:16.6]} 12. Bxf6 {[%clk 0:02:47.6]} 12... Bxf6 {[%clk
0:02:17.5]} 13. a5 {[%clk 0:02:38.6]} 13... Bg7 {[%clk 0:02:06.7]} 14. Nd2
{[%clk 0:02:35.5]} 14... f5 {[%clk 0:01:52.9]} 15. exf5 {[%clk 0:02:19.6]} 15...
gxf5 {[%clk 0:01:53]} 16. Nc4 {[%clk 0:02:19.7]} 16... Be6 {[%clk 0:01:43.5]}
17. Bxb7 {[%clk 0:01:38.9]} 17... Ra7 {[%clk 0:01:40.1]} 18. Bg2 {[%clk
0:01:36.7]} 18... e4 {[%clk 0:01:29.1]} 19. Ne2 {[%clk 0:00:58.7]} 19... d5
{[%clk 0:00:57.3]} 20. Nf4 {[%clk 0:00:57.4]} 20... Bf7 {[%clk 0:00:51.5]} 21.
Ne3 {[%clk 0:00:50.4]} 21... Bxb2 {[%clk 0:00:13.9]} 22. Nxf5 {[%clk 0:00:46]}
22... Kh7 {[%clk 0:00:05]} 23. Rb1 {[%clk 0:00:44.8]} 23... Bc3 {[%clk
0:00:04.6]} 24. Re2 {[%clk 0:00:37.1]} 24... Qf6 {[%clk 0:00:04.9]} 25. dxe4
{[%clk 0:00:36.2]} 25... dxe4 {[%clk 0:00:05]} 26. Bxe4 {[%clk 0:00:32.7]} 26...
Re8 {[%clk 0:00:05.2]} 27. Nd6+ {[%clk 0:00:31.7]} 27... Rxe4 {[%clk 0:00:04]}
28. Nxe4 {[%clk 0:00:31.6]} 28... Qg7 {[%clk 0:00:02.1]} 29. Nxc3 {[%clk
0:00:18.7]} 29... Qxc3 {[%clk 0:00:03]} 30. Qd6 {[%clk 0:00:14.2]} 30... Qg7
{[%clk 0:00:02.5]} 31. Qb6 {[%clk 0:00:11]} 31... Rd7 {[%clk 0:00:02.3]} 32.
Qxc5 {[%clk 0:00:09.7]} 32... Na2 {[%clk 0:00:02]} 33. Qf5+ {[%clk 0:00:10]}
33... Bg6 {[%clk 0:00:01.4]} 34. Nxg6 {[%clk 0:00:10.5]} 34... Rf7 {[%clk
0:00:01.7]} 35. Qd3 {[%clk 0:00:06.5]} 35... Qxg6 {[%clk 0:00:01.9]} 36. Qxg6+
{[%clk 0:00:07.3]} 36... Kxg6 {[%clk 0:00:02.8]} 37. Re3 {[%clk 0:00:05.3]}
37... Rc7 {[%clk 0:00:02.4]} 38. Rb2 {[%clk 0:00:03.8]} 38... Nc3 {[%clk
0:00:02.6]} 39. Rb6+ {[%clk 0:00:04.6]} 39... Kg5 {[%clk 0:00:01.8]} 40. Rxa6
{[%clk 0:00:05.5]} 40... Nd1 {[%clk 0:00:02.2]} 41. Re5# {[%clk 0:00:05.6]} 1-0

[Event "Early-Titled-Tuesday-Blitz-December-26-2023"]
[Site "Chess.com"]
[Date "2023.12.26"]
[Round "9"]
[White "MANOJ_MISHRA123"]
[Black "C_K_G"]
[Result "0-1"]
[WhiteElo "2271"]
[BlackElo "2061"]
[TimeControl "180+1"]
[EndTime "9:45:46 PST"]
[Termination "C_K_G won by checkmate"]

1. d4 {[%clk 0:02:52.1]} 1... c5 {[%clk 0:03:00.9]} 2. d5 {[%clk 0:02:51.3]}
2... d6 {[%clk 0:02:56.7]} 3. Nf3 {[%clk 0:02:50.1]} 3... Nf6 {[%clk 0:02:53.1]}
4. b3 {[%clk 0:02:49.1]} 4... e6 {[%clk 0:02:49.7]} 5. c4 {[%clk 0:02:48.6]}
5... Be7 {[%clk 0:02:49]} 6. Bb2 {[%clk 0:02:47.8]} 6... O-O {[%clk 0:02:48.8]}
7. g3 {[%clk 0:02:47.3]} 7... b5 {[%clk 0:02:46.7]} 8. Bg2 {[%clk 0:02:42.9]}
8... bxc4 {[%clk 0:02:46.2]} 9. bxc4 {[%clk 0:02:43.8]} 9... Ba6 {[%clk
0:02:37]} 10. Nbd2 {[%clk 0:02:23.7]} 10... exd5 {[%clk 0:02:25.1]} 11. Nh4
{[%clk 0:02:14.5]} 11... Nbd7 {[%clk 0:02:13.6]} 12. Nf5 {[%clk 0:02:02.6]}
12... Rb8 {[%clk 0:02:09.9]} 13. Rb1 {[%clk 0:01:51.7]} 13... dxc4 {[%clk
0:02:06.5]} 14. Ne4 {[%clk 0:01:45.6]} 14... d5 {[%clk 0:01:48.2]} 15. Ng5
{[%clk 0:01:29]} 15... d4 {[%clk 0:01:40.3]} 16. O-O {[%clk 0:01:24.3]} 16... c3
{[%clk 0:01:30.7]} 17. Ba1 {[%clk 0:01:09.3]} 17... h6 {[%clk 0:00:58.6]} 18.
Rxb8 {[%clk 0:00:52.5]} 18... Nxb8 {[%clk 0:00:57]} 19. Ne4 {[%clk 0:00:41.8]}
19... Nxe4 {[%clk 0:00:54.5]} 20. Bxe4 {[%clk 0:00:42.7]} 20... Bg5 {[%clk
0:00:45.2]} 21. Bb1 {[%clk 0:00:30.5]} 21... g6 {[%clk 0:00:40.5]} 22. Qc2
{[%clk 0:00:26.7]} 22... gxf5 {[%clk 0:00:21.7]} 23. Qxf5 {[%clk 0:00:25.8]}
23... d3 {[%clk 0:00:19.4]} 24. Bxc3 {[%clk 0:00:23.5]} 24... Qd7 {[%clk
0:00:16.4]} 25. Qe5 {[%clk 0:00:20.4]} 25... f6 {[%clk 0:00:16.4]} 26. Qe4
{[%clk 0:00:18.6]} 26... Re8 {[%clk 0:00:15]} 27. Qg6+ {[%clk 0:00:17.9]} 27...
Kf8 {[%clk 0:00:15.2]} 28. exd3 {[%clk 0:00:16.8]} 28... Qg7 {[%clk 0:00:14.9]}
29. Qf5 {[%clk 0:00:16.1]} 29... Nc6 {[%clk 0:00:14.4]} 30. Qxc5+ {[%clk
0:00:15.9]} 30... Ne7 {[%clk 0:00:14.6]} 31. Re1 {[%clk 0:00:15]} 31... Qf7
{[%clk 0:00:13.7]} 32. f4 {[%clk 0:00:10.8]} 32... Bxf4 {[%clk 0:00:12.6]} 33.
gxf4 {[%clk 0:00:09.8]} 33... Bb7 {[%clk 0:00:10.7]} 34. d4 {[%clk 0:00:08]}
34... Qg7+ {[%clk 0:00:10.4]} 35. Kf2 {[%clk 0:00:08.5]} 35... Qg2+ {[%clk
0:00:10.2]} 36. Ke3 {[%clk 0:00:09.1]} 36... Kf7 {[%clk 0:00:10.3]} 37. Re2
{[%clk 0:00:08.5]} 37... Nd5+ {[%clk 0:00:10.4]} 38. Kd3 {[%clk 0:00:08.3]}
38... Qxe2# {[%clk 0:00:09.7]} 0-1

[Event "Early-Titled-Tuesday-Blitz-December-26-2023"]
[Site "Chess.com"]
[Date "2023.12.26"]
[Round "9"]
[White "Klavdia_Nik"]
[Black "Dewarfd"]
[Result "1-0"]
[WhiteElo "1992"]
[BlackElo "2077"]
[TimeControl "180+1"]
[EndTime "9:45:53 PST"]
[Termination "Klavdia_Nik won on time"]

1. Nf3 {[%clk 0:02:59.8]} 1... g6 {[%clk 0:02:56.1]} 2. c4 {[%clk 0:02:59.1]}
2... Bg7 {[%clk 0:02:56.2]} 3. Nc3 {[%clk 0:02:59.4]} 3... d6 {[%clk 0:02:56.2]}
4. h3 {[%clk 0:02:58.1]} 4... c6 {[%clk 0:02:56.3]} 5. e4 {[%clk 0:02:58.2]}
5... e5 {[%clk 0:02:42.5]} 6. d4 {[%clk 0:02:54.3]} 6... exd4 {[%clk 0:02:35.4]}
7. Nxd4 {[%clk 0:02:55.2]} 7... Nf6 {[%clk 0:02:33.3]} 8. Be3 {[%clk 0:02:54.5]}
8... O-O {[%clk 0:02:33.1]} 9. Be2 {[%clk 0:02:53.7]} 9... Nbd7 {[%clk
0:02:32.8]} 10. O-O {[%clk 0:02:53.5]} 10... Re8 {[%clk 0:02:32.6]} 11. f3
{[%clk 0:02:48.1]} 11... a5 {[%clk 0:02:31.2]} 12. Qd2 {[%clk 0:02:46.6]} 12...
Nc5 {[%clk 0:02:24.9]} 13. b3 {[%clk 0:02:45.8]} 13... a4 {[%clk 0:02:23.3]} 14.
b4 {[%clk 0:02:40.6]} 14... Ne6 {[%clk 0:02:23.2]} 15. a3 {[%clk 0:02:36.8]}
15... Nh5 {[%clk 0:02:16.7]} 16. Rfd1 {[%clk 0:02:29.7]} 16... Ng3 {[%clk
0:02:11.4]} 17. Bf1 {[%clk 0:02:24.9]} 17... Nxf1 {[%clk 0:02:08.2]} 18. Kxf1
{[%clk 0:02:23.3]} 18... Nxd4 {[%clk 0:02:07.5]} 19. Bxd4 {[%clk 0:02:23.1]}
19... Be6 {[%clk 0:01:59.6]} 20. Bxg7 {[%clk 0:02:12.2]} 20... Kxg7 {[%clk
0:01:52.5]} 21. Qd3 {[%clk 0:01:49.3]} 21... Qg5 {[%clk 0:01:40]} 22. Ne2 {[%clk
0:01:45.6]} 22... Rad8 {[%clk 0:01:18.3]} 23. Rac1 {[%clk 0:01:32.1]} 23... d5
{[%clk 0:01:14.7]} 24. Qd4+ {[%clk 0:01:22.6]} 24... Kg8 {[%clk 0:01:06.5]} 25.
cxd5 {[%clk 0:01:22.1]} 25... cxd5 {[%clk 0:01:06.2]} 26. e5 {[%clk 0:01:22.2]}
26... Rc8 {[%clk 0:00:44.4]} 27. f4 {[%clk 0:01:18.9]} 27... Qf5 {[%clk
0:00:40.2]} 28. Ng3 {[%clk 0:01:09.5]} 28... Rxc1 {[%clk 0:00:26.8]} 29. Nxf5
{[%clk 0:01:03]} 29... Rxd1+ {[%clk 0:00:25.7]} 30. Qxd1 {[%clk 0:01:03.2]}
30... Bxf5 {[%clk 0:00:25.9]} 31. Qxa4 {[%clk 0:01:02.9]} 31... Rc8 {[%clk
0:00:20.1]} 32. g4 {[%clk 0:00:53.9]} 32... Rc1+ {[%clk 0:00:11.5]} 33. Ke2
{[%clk 0:00:52.1]} 33... Rc2+ {[%clk 0:00:09.7]} 34. Ke3 {[%clk 0:00:48.6]}
34... Be4 {[%clk 0:00:09.8]} 35. Qe8+ {[%clk 0:00:40.5]} 35... Kg7 {[%clk
0:00:09]} 36. e6 {[%clk 0:00:35.9]} 36... fxe6 {[%clk 0:00:05.5]} 37. Qe7+
{[%clk 0:00:29.2]} 37... Kg8 {[%clk 0:00:05.4]} 38. Qxe6+ {[%clk 0:00:29.1]}
38... Kg7 {[%clk 0:00:05.9]} 39. Qe7+ {[%clk 0:00:28.1]} 39... Kg8 {[%clk
0:00:05.9]} 40. f5 {[%clk 0:00:20.4]} 40... gxf5 {[%clk 0:00:05.5]} 41. gxf5
{[%clk 0:00:21.3]} 41... Rc3+ {[%clk 0:00:05]} 42. Kd4 {[%clk 0:00:21]} 42...
Rf3 {[%clk 0:00:02.8]} 43. f6 {[%clk 0:00:19.8]} 1-0

[Event "Early-Titled-Tuesday-Blitz-December-26-2023"]
[Site "Chess.com"]
[Date "2023.12.26"]
[Round "9"]
[White "Aradhya2000"]
[Black "rasmussvane"]
[Result "1-0"]
[WhiteElo "2733"]
[BlackElo "2909"]
[TimeControl "180+1"]
[EndTime "9:45:55 PST"]
[Termination "Aradhya2000 won by resignation"]

1. d4 {[%clk 0:03:00.9]} 1... d5 {[%clk 0:02:55.6]} 2. c4 {[%clk 0:03:00.9]}
2... e6 {[%clk 0:02:55.6]} 3. Nf3 {[%clk 0:03:01]} 3... a6 {[%clk 0:02:55.5]} 4.
Bg5 {[%clk 0:03:00.6]} 4... Be7 {[%clk 0:02:53.8]} 5. Bxe7 {[%clk 0:03:00.5]}
5... Nxe7 {[%clk 0:02:54.7]} 6. Nbd2 {[%clk 0:03:00]} 6... O-O {[%clk
0:02:54.8]} 7. g3 {[%clk 0:03:00.4]} 7... Nd7 {[%clk 0:02:55.2]} 8. Rc1 {[%clk
0:03:00.3]} 8... b6 {[%clk 0:02:45.8]} 9. Bg2 {[%clk 0:02:57.4]} 9... Bb7 {[%clk
0:02:44.4]} 10. O-O {[%clk 0:02:57.9]} 10... c5 {[%clk 0:02:36.7]} 11. cxd5
{[%clk 0:02:57.8]} 11... Nxd5 {[%clk 0:02:32.3]} 12. Nc4 {[%clk 0:02:54.9]}
12... Qe7 {[%clk 0:02:28.4]} 13. Re1 {[%clk 0:02:38.6]} 13... Rfd8 {[%clk
0:02:20.9]} 14. e4 {[%clk 0:02:38.4]} 14... N5f6 {[%clk 0:02:18.7]} 15. d5
{[%clk 0:02:38.9]} 15... exd5 {[%clk 0:02:14.7]} 16. exd5 {[%clk 0:02:39.2]}
16... Qf8 {[%clk 0:02:13.7]} 17. Nh4 {[%clk 0:02:23.8]} 17... g6 {[%clk
0:01:58.9]} 18. d6 {[%clk 0:02:22.5]} 18... Bxg2 {[%clk 0:01:58.2]} 19. Kxg2
{[%clk 0:02:23.4]} 19... Rac8 {[%clk 0:01:15.5]} 20. Nf3 {[%clk 0:02:18]} 20...
Rc6 {[%clk 0:01:03.4]} 21. Qb3 {[%clk 0:01:36.3]} 21... Rdc8 {[%clk 0:00:57]}
22. a4 {[%clk 0:01:25.1]} 22... Ne8 {[%clk 0:00:42.7]} 23. Re7 {[%clk
0:00:55.7]} 23... Rxd6 {[%clk 0:00:30.8]} 24. Rce1 {[%clk 0:00:55.5]} 24... Rd5
{[%clk 0:00:26.3]} 25. Nxb6 {[%clk 0:00:55.7]} 25... Nxb6 {[%clk 0:00:25.6]} 26.
Qxb6 {[%clk 0:00:55.4]} 26... Nd6 {[%clk 0:00:17.9]} 27. Qxa6 {[%clk 0:00:55.6]}
27... Rd8 {[%clk 0:00:16.2]} 28. Qe2 {[%clk 0:00:51.6]} 28... Nf5 {[%clk
0:00:15.6]} 29. Re8 {[%clk 0:00:50]} 29... Rxe8 {[%clk 0:00:16.2]} 30. Qxe8
{[%clk 0:00:50.1]} 30... c4 {[%clk 0:00:10.6]} 31. Qc6 {[%clk 0:00:46.3]} 31...
Rc5 {[%clk 0:00:10.9]} 32. Qd7 {[%clk 0:00:45]} 32... Qd6 {[%clk 0:00:08.2]} 33.
Rd1 {[%clk 0:00:42.7]} 33... Qxd7 {[%clk 0:00:08.3]} 34. Rxd7 {[%clk 0:00:43.6]}
34... Ra5 {[%clk 0:00:08.9]} 35. Ng5 {[%clk 0:00:39.7]} 35... Rxa4 {[%clk
0:00:08.1]} 36. Nxf7 {[%clk 0:00:38]} 36... Rb4 {[%clk 0:00:08.6]} 37. Ne5
{[%clk 0:00:37.1]} 37... Rxb2 {[%clk 0:00:08.9]} 38. Nxc4 {[%clk 0:00:37.2]}
38... Rc2 {[%clk 0:00:09.3]} 39. Ne5 {[%clk 0:00:36.3]} 39... Re2 {[%clk
0:00:09]} 40. Ng4 {[%clk 0:00:35.8]} 40... h5 {[%clk 0:00:08.1]} 41. Nf6+ {[%clk
0:00:35.9]} 41... Kf8 {[%clk 0:00:08.9]} 42. Kf3 {[%clk 0:00:34.8]} 42... Ra2
{[%clk 0:00:08.8]} 43. Nh7+ {[%clk 0:00:34.8]} 43... Kg8 {[%clk 0:00:09]} 44.
Nf6+ {[%clk 0:00:35.5]} 44... Kf8 {[%clk 0:00:09.4]} 45. h4 {[%clk 0:00:35.7]}
45... Rb2 {[%clk 0:00:09.1]} 46. Ne4 {[%clk 0:00:35.7]} 46... Ne7 {[%clk
0:00:04.8]} 47. Kf4 {[%clk 0:00:35.4]} 47... Kf7 {[%clk 0:00:05.5]} 48. Kg5
{[%clk 0:00:34.1]} 48... Rb5+ {[%clk 0:00:05.2]} 49. Kh6 {[%clk 0:00:34.3]}
49... Re5 {[%clk 0:00:04.8]} 50. Ng5+ {[%clk 0:00:33.4]} 50... Kf6 {[%clk
0:00:05.3]} 51. Rd6+ {[%clk 0:00:33]} 51... Kf5 {[%clk 0:00:05.7]} 52. f3 {[%clk
0:00:31.7]} 52... Re3 {[%clk 0:00:05.5]} 53. Kg7 {[%clk 0:00:31.1]} 53... Rb3
{[%clk 0:00:04.2]} 54. Rf6+ {[%clk 0:00:30.2]} 54... Ke5 {[%clk 0:00:04.4]} 55.
Re6+ {[%clk 0:00:30.9]} 55... Kf5 {[%clk 0:00:04.9]} 56. Rxe7 {[%clk 0:00:31.6]}
1-0